bitfinex/quotes_BTCUSD_20250109
["timestamp","ask_amount","ask_price","bid_price","bid_amount"]
[1736404026917,0.211613,94512.0,94502.0,0.0788983]
[1736404027318,0.423226,94512.0,94502.0,0.0788983]
[1736404028440,0.001,94510.0,94502.0,0.0788983]
[1736404028670,0.423226,94512.0,94502.0,0.0788983]
[1736404030418,0.01657716,94510.0,94502.0,0.0788983]
[1736404030750,0.211613,94512.0,94502.0,0.0788983]
[1736404031765,0.001,94510.0,94502.0,0.0788983]
[1736404032004,0.21162,94509.0,94502.0,0.0788983]
[1736404032726,0.211612,94513.0,94502.0,0.0788983]
[1736404032941,0.001,94510.0,94502.0,0.07995634]
[1736404033149,0.001,94510.0,94508.0,0.1295]
[1736404033358,0.001,94510.0,94509.0,0.08165794]
[1736404033574,0.01657596,94510.0,94509.0,0.08165794]
[1736404034806,0.01657596,94510.0,94509.0,0.29327794]
[1736404035006,0.01657596,94510.0,94509.0,0.29222]
[1736404035212,0.01657596,94510.0,94509.0,0.44341976]
[1736404035431,0.01657596,94510.0,94509.0,0.59341976]
[1736404035635,0.001,94510.0,94509.0,0.72971529]
[1736404036264,0.211562,94535.0,94514.0,0.1278]
[1736404036448,0.211562,94535.0,94522.0,0.21159]
[1736404036649,0.211562,94535.0,94522.0,0.29229]
[1736404038585,0.211562,94535.0,94522.0,0.33989]
[1736404038950,0.0024991,94523.0,94522.0,0.34289]
[1736404039358,0.0014991,94523.0,94522.0,0.33989]
[1736404039558,0.0004991,94523.0,94522.0,0.34289]
[1736404039774,0.0014991,94523.0,94522.0,0.34289]
[1736404039982,0.0004991,94523.0,94522.0,0.34389]
[1736404040332,0.01707221,94523.0,94522.0,0.44418976]
[1736404040531,0.0004991,94523.0,94522.0,0.44418976]
[1736404040737,0.0004991,94523.0,94522.0,0.44718976]
[1736404041514,0.0004991,94523.0,94522.0,0.44418976]
[1736404041926,0.0014991,94523.0,94522.0,0.44718976]
[1736404042286,0.0004991,94523.0,94522.0,0.44418976]
[1736404042649,0.0024991,94523.0,94522.0,0.45318976]
[1736404043069,0.0024991,94523.0,94522.0,0.44718976]
[1736404043070,0.0014991,94523.0,94522.0,0.44718976]
[1736404043495,0.0024991,94523.0,94522.0,0.45318976]
[1736404047053,0.01907162,94523.0,94522.0,0.45318976]
[1736404047667,0.0024991,94523.0,94522.0,0.45318976]
[1736404047896,0.0024991,94523.0,94522.0,0.34889]
[1736404048116,0.0024991,94523.0,94522.0,0.1373]
[1736404048544,0.0024991,94523.0,94522.0,0.0897]
[1736404048760,0.0024991,94523.0,94522.0,0.009]
[1736404048975,0.02190641,94523.0,94517.0,0.0818]
[1736404049355,0.02290641,94523.0,94522.0,0.006]
[1736404049565,0.0014991,94523.0,94522.0,0.006]
[1736404049767,0.0004991,94523.0,94517.0,0.0818]
[1736404049976,0.0014991,94523.0,94522.0,0.003]
[1736404050136,0.0004991,94523.0,94519.0,0.211597]
[1736404050639,0.01807288,94523.0,94522.0,0.003]
[1736404050822,0.01707288,94523.0,94517.0,0.293401]
[1736404051064,0.01707288,94523.0,94517.0,0.296401]
[1736404052080,0.01707288,94523.0,94517.0,0.293401]
[1736404052263,0.01807288,94523.0,94522.0,0.003]
[1736404052437,0.01707288,94523.0,94519.0,0.003]
[1736404052844,0.01807288,94523.0,94517.0,0.296401]
[1736404053027,0.01707288,94523.0,94517.0,0.293401]
[1736404053384,0.01807288,94523.0,94522.0,0.003]
[1736404053804,0.01707288,94523.0,94517.0,0.296401]
[1736404054018,0.01807288,94523.0,94517.0,0.299401]
[1736404054928,0.0014991,94523.0,94517.0,0.299401]
[1736404055086,0.0014991,94523.0,94519.0,0.211597]
[1736404055295,0.0004991,94523.0,94519.0,0.211597]
[1736404055507,0.0004991,94523.0,94517.0,0.296401]
[1736404055508,0.12270858,94518.0,94517.0,0.003]
[1736404055696,0.21164,94500.0,94499.0,8.53e-05]
[1736404056295,0.23464,94500.0,94499.0,8.53e-05]
[1736404057007,0.23464,94500.0,94499.0,0.0050853]
[1736404057193,0.23564,94500.0,94499.0,0.0080853]
[1736404058289,0.21264,94500.0,94499.0,0.0080853]
[1736404058501,0.211627,94506.0,94499.0,0.0050853]
[1736404058713,0.001,94500.0,94499.0,0.0080853]
[1736404058934,0.001,94500.0,94499.0,0.0030853]
[1736404059145,0.21163,94505.0,94499.0,8.53e-05]
[1736404059350,0.21163,94505.0,94499.0,0.0060853]
[1736404059562,0.21162,94509.0,94499.0,0.0060853]
[1736404059803,0.211635,94502.0,94499.0,0.0030853]
[1736404060020,0.09970858,94501.0,94499.0,0.0060853]
[1736404060193,0.09970858,94501.0,94499.0,0.0030853]
[1736404060404,0.03895467,94500.0,94499.0,0.0040853]
[1736404060609,0.25059467,94500.0,94499.0,0.0010853]
[1736404060950,0.35109467,94500.0,94499.0,0.0020853]
[1736404061731,0.35109467,94500.0,94499.0,0.0010853]
[1736404061934,0.45080325,94500.0,94499.0,0.0040853]
[1736404062136,0.55510301,94500.0,94499.0,0.0030853]
[1736404062329,0.55510301,94500.0,94499.0,8.53e-05]
[1736404062565,0.55510301,94500.0,94499.0,0.0060853]
[1736404063709,0.57168346,94500.0,94499.0,0.0060853]
[1736404064334,0.45522879,94500.0,94499.0,0.0060853]
[1736404064947,0.43864834,94500.0,94499.0,0.0060853]
[1736404070462,0.63734834,94500.0,94499.0,0.0060853]
[1736404070917,0.71554834,94500.0,94499.0,0.0060853]
[1736404071548,0.73212927,94500.0,94499.0,0.0060853]
[1736404072012,0.83642903,94500.0,94499.0,3e-07]
[1736404072245,0.09970858,94498.0,94497.0,8.9e-07]
[1736404072456,0.37700834,94498.0,94497.0,8.9e-07]
[1736404072639,0.45520834,94498.0,94497.0,8.9e-07]
[1736404073413,0.45520834,94498.0,94497.0,0.00300089]
[1736404073630,0.5595081,94498.0,94497.0,0.00300089]
[1736404074024,0.5605081,94498.0,94497.0,0.00600089]
[1736404074405,0.5605081,94498.0,94497.0,8.9e-07]
[1736404075524,0.5635081,94498.0,94497.0,8.9e-07]
[1736404076098,0.5605081,94498.0,94497.0,8.9e-07]
[1736404076625,0.5635081,94498.0,94497.0,8.9e-07]
[1736404078243,0.45820834,94498.0,94484.0,8.53e-05]
[1736404078392,0.211673,94485.0,94484.0,8.53e-05]
[1736404078601,0.234673,94485.0,94484.0,8.53e-05]
[1736404078834,0.33438158,94485.0,94484.0,8.53e-05]
[1736404079757,0.33588037,94485.0,94484.0,8.53e-05]
[1736404079953,0.31509223,94485.0,94484.0,8.53e-05]
[1736404080162,0.41480081,94485.0,94484.0,8.53e-05]
[1736404083204,0.41080081,94485.0,94484.0,8.53e-05]
[1736404083616,0.33488037,94485.0,94484.0,8.53e-05]
[1736404083826,0.21617179,94485.0,94484.0,8.53e-05]
[1736404085062,0.21217179,94485.0,94484.0,8.53e-05]
[1736404085463,0.21617179,94485.0,94484.0,8.53e-05]
[1736404085690,0.21217179,94485.0,94484.0,8.53e-05]
[1736404086227,0.21217179,94485.0,94484.0,0.0010853]
[1736404087180,0.22875235,94485.0,94484.0,0.0010853]
[1736404087531,0.21217179,94485.0,94484.0,0.0010853]
[1736404087937,0.21217179,94485.0,94484.0,8.53e-05]
[1736404088259,0.21217179,94485.0,94484.0,0.0010853]
[1736404088881,0.21217179,94485.0,94484.0,8.53e-05]
[1736404089241,0.21217179,94485.0,94484.0,0.0010853]
[1736404090053,0.00049879,94485.0,94484.0,0.0010853]
[1736404090262,0.00049879,94485.0,94484.0,0.0817853]
[1736404091159,0.00049879,94485.0,94484.0,0.0807853]
[1736404091367,0.00049879,94485.0,94484.0,0.0817853]
[1736404092041,0.00049879,94485.0,94484.0,0.0807853]
[1736404092249,0.00149879,94485.0,94484.0,0.08484355]
[1736404092555,0.00149879,94485.0,94484.0,0.0837853]
[1736404101187,0.00149879,94485.0,94484.0,0.33414334]
[1736404101415,0.00149879,94485.0,94484.0,0.33308506]
[1736404102070,0.00149879,94485.0,94484.0,0.48008506]
[1736404102271,0.00149879,94485.0,94484.0,0.51341319]
[1736404102476,0.00049879,94485.0,94484.0,0.51641319]
[1736404102617,0.00149879,94485.0,94484.0,0.52704458]
[1736404104088,0.00049879,94485.0,94484.0,0.52404458]
[1736404104227,0.00149879,94485.0,94484.0,0.49700787]
[1736404104635,0.00049879,94485.0,94484.0,0.49300787]
[1736404104857,0.00149879,94485.0,94484.0,0.49900787]
[1736404105070,0.00149879,94485.0,94484.0,0.50400787]
[1736404106485,0.01807696,94485.0,94484.0,0.50400787]
[1736404107328,0.00149879,94485.0,94484.0,0.50400787]
[1736404110287,0.0180767,94485.0,94484.0,0.50400787]
[1736404111469,0.00149879,94485.0,94484.0,0.50400787]
[1736404112765,0.00149879,94485.0,94484.0,0.45900787]
[1736404117181,0.0180773,94485.0,94484.0,0.45900787]
[1736404117312,0.00149879,94485.0,94484.0,0.45900787]
[1736404120322,0.01807733,94485.0,94484.0,0.45900787]
[1736404120672,0.01807733,94485.0,94484.0,0.4920477]
[1736404121939,0.00149879,94485.0,94484.0,0.4920477]
[1736404124086,0.00149879,94485.0,94484.0,0.41105628]
[1736404124290,0.00149879,94485.0,94484.0,0.0130853]
[1736404124450,0.00149879,94485.0,94484.0,0.01414353]
[1736404131456,0.02281467,94485.0,94484.0,0.0130853]
[1736404131671,0.00149879,94485.0,94484.0,0.0130853]
[1736404133493,0.0180793,94485.0,94484.0,0.0130853]
[1736404140519,0.00149879,94485.0,94484.0,0.0130853]
[1736404141362,0.00149879,94485.0,94484.0,0.01414354]
[1736404143542,0.01807944,94485.0,94484.0,0.01414354]
[1736404144344,0.01807944,94485.0,94484.0,0.0130853]
[1736404147406,0.00149879,94485.0,94484.0,0.0130853]
[1736404149812,0.00149879,94485.0,94484.0,0.11844329]
[1736404151723,0.01807865,94485.0,94484.0,0.11844329]
[1736404153644,0.00149879,94485.0,94484.0,0.11844329]
[1736404158877,0.00149879,94485.0,94484.0,0.15153941]
[1736404161268,0.00149879,94485.0,94484.0,0.11738506]
[1736404163676,0.01807891,94485.0,94484.0,0.11738506]
[1736404164491,0.01807891,94485.0,94484.0,0.15048321]
[1736404165895,0.01807891,94485.0,94484.0,0.11738506]
[1736404166279,0.01807891,94485.0,94484.0,0.15048416]
[1736404166905,0.00149879,94485.0,94484.0,0.15048416]
[1736404170342,0.00149879,94485.0,94484.0,0.15154236]
[1736404170565,0.00149879,94485.0,94484.0,0.53143378]
[1736404170774,0.00149879,94485.0,94484.0,0.53037558]
[1736404171588,0.09494618,94499.0,94498.0,0.37839142]
[1736404171799,0.09494618,94499.0,94498.0,0.72748424]
[1736404172003,0.01657824,94517.0,94506.0,0.1]
[1736404172359,0.01657824,94517.0,94511.0,0.211614]
[1736404172565,0.09494618,94518.0,94507.0,0.3600808]
[1736404172566,0.09494618,94518.0,94513.0,0.293411]
[1736404172789,0.09494618,94518.0,94515.0,0.423212]
[1736404172977,0.09494618,94518.0,94517.0,0.211602]
[1736404173180,0.09494618,94518.0,94517.0,0.31590176]
[1736404173588,0.211573,94530.0,94517.0,0.31590176]
[1736404173789,0.211573,94530.0,94518.0,0.10535759]
[1736404174166,0.09494618,94531.0,94519.0,0.211597]
[1736404174366,0.09494618,94531.0,94520.0,0.10429976]
[1736404174592,0.09494618,94531.0,94521.0,0.211593]
[1736404174770,0.21157,94532.0,94521.0,0.10429976]
[1736404174999,0.21157,94532.0,94522.0,0.00105782]
[1736404175776,0.0001706,94523.0,94521.0,0.10429976]
[1736404176002,0.0001706,94523.0,94522.0,0.00105782]
[1736404177462,0.0001706,94523.0,94522.0,0.002]
[1736404177918,0.0001706,94523.0,94521.0,0.10429976]
[1736404178330,0.0001706,94523.0,94522.0,0.002]
[1736404179064,0.0001706,94523.0,94522.0,0.006]
[1736404179400,0.0001706,94523.0,94522.0,0.00705782]
[1736404179610,0.0001706,94523.0,94522.0,0.006]
[1736404180039,0.0001706,94523.0,94522.0,0.004]
[1736404181238,0.0001706,94523.0,94522.0,0.002]
[1736404181438,0.0001706,94523.0,94522.0,0.005]
[1736404182282,0.0816706,94523.0,94522.0,0.005]
[1736404182461,0.1278706,94523.0,94522.0,0.005]
[1736404184101,0.1278706,94523.0,94522.0,0.003]
[1736404184781,0.21159,94522.0,94509.0,0.21162]
[1736404184986,0.1278706,94523.0,94511.0,0.211615]
[1736404185159,0.1278706,94523.0,94512.0,0.00105793]
[1736404185336,0.0001706,94523.0,94513.0,0.211611]
[1736404186129,0.0001706,94523.0,94514.0,0.18485768]
[1736404187491,0.0001706,94523.0,94514.0,0.18585768]
[1736404187837,0.0001706,94523.0,94515.0,0.211606]
[1736404188145,0.0001706,94523.0,94516.0,0.10535763]
[1736404188390,0.0001706,94523.0,94517.0,0.211602]
[1736404188817,0.0001706,94523.0,94519.0,0.211597]
[1736404189039,0.0001706,94523.0,94520.0,0.00105784]
[1736404189205,0.0001706,94523.0,94519.0,0.31589676]
[1736404190433,0.0001706,94523.0,94519.0,0.31689676]
[1736404191986,0.0001706,94523.0,94519.0,0.31989676]
[1736404192521,0.0001706,94523.0,94519.0,0.10829976]
[1736404192670,0.2117596,94523.0,94519.0,0.004]
[1736404194285,0.4233486,94523.0,94519.0,0.004]
[1736404195362,0.4233486,94523.0,94519.0,0.001]
[1736404195552,0.4233486,94523.0,94510.0,0.211617]
[1736404195780,0.4233486,94523.0,94519.0,0.003]
[1736404196487,0.2117596,94523.0,94512.0,0.00105792]
[1736404196691,0.2117596,94523.0,94512.0,0.31697068]
[1736404196992,0.2117596,94523.0,94512.0,0.31591276]
[1736404197192,0.2117596,94523.0,94513.0,0.00105792]
[1736404198650,0.0001706,94523.0,94519.0,0.002]
[1736404198858,0.0001706,94523.0,94513.0,0.00105791]
[1736404199279,0.0001706,94523.0,94513.0,0.00305791]
[1736404199797,0.0001706,94523.0,94514.0,0.52751476]
[1736404199918,0.01657481,94521.0,94516.0,0.211604]
[1736404200117,0.01657481,94521.0,94517.0,0.10429976]
[1736404201671,0.01657481,94521.0,94518.0,0.211599]
[1736404201881,0.01657481,94521.0,94520.0,0.211595]
[1736404202087,0.01657481,94521.0,94520.0,0.31589476]
[1736404203328,0.01657481,94521.0,94520.0,0.31889476]
[1736404203540,0.01657481,94521.0,94520.0,0.31989476]
[1736404203740,0.0001706,94523.0,94520.0,0.53148976]
[1736404203981,0.0001706,94523.0,94522.0,0.1758]
[1736404204189,0.0001706,94523.0,94522.0,0.31313568]
[1736404204826,0.0001706,94523.0,94522.0,0.4634271]
[1736404206290,0.0011706,94523.0,94522.0,0.4704271]
[1736404206501,0.0001706,94523.0,94522.0,0.4664271]
[1736404207045,0.0001706,94523.0,94522.0,0.4684271]
[1736404207255,0.0001706,94523.0,94522.0,0.4634271]
[1736404207458,0.0001706,94523.0,94522.0,0.4664271]
[1736404207897,0.0001706,94523.0,94522.0,0.2906271]
[1736404208166,0.0001706,94523.0,94522.0,0.03603592]
[1736404208465,0.0793706,94523.0,94522.0,0.003]
[1736404208704,0.0803706,94523.0,94522.0,0.008]
[1736404208913,0.0793706,94523.0,94522.0,0.004]
[1736404209212,0.0803706,94523.0,94522.0,0.013]
[1736404209453,0.0011706,94523.0,94520.0,0.3258]
[1736404209975,0.0011706,94523.0,94522.0,0.003]
[1736404210242,0.0021706,94523.0,94522.0,0.007]
[1736404210499,0.0001706,94523.0,94520.0,0.3258]
[1736404210701,0.0001706,94523.0,94522.0,0.001]
[1736404211742,0.0001706,94523.0,94522.0,0.10529976]
[1736404211987,0.0001706,94523.0,94522.0,0.10429976]
[1736404212237,0.0001706,94523.0,94522.0,0.13935955]
[1736404212489,0.0001706,94523.0,94522.0,0.22275097]
[1736404212746,0.0001706,94523.0,94522.0,0.46675097]
[1736404212992,0.0001706,94523.0,94522.0,0.47075097]
[1736404213242,0.0001706,94523.0,94522.0,0.51785097]
[1736404213760,0.0001706,94523.0,94522.0,0.52185097]
[1736404214052,0.0001706,94523.0,94522.0,0.84565097]
[1736404215540,0.0001706,94523.0,94522.0,0.94390579]
[1736404215770,0.0001706,94523.0,94522.0,0.93990579]
[1736404215981,0.0001706,94523.0,94522.0,0.94590579]
[1736404216235,0.0001706,94523.0,94522.0,0.95090579]
[1736404216504,0.0001706,94523.0,94522.0,0.84665097]
[1736404216971,0.0001706,94523.0,94522.0,0.85565097]
[1736404217874,0.0001706,94523.0,94522.0,1.40045097]
[1736404218081,0.0001706,94535.0,94534.0,0.25029142]
[1736404218287,0.0001706,94535.0,94534.0,0.78177497]
[1736404219245,0.0001706,94535.0,94534.0,0.78482493]
[1736404219449,0.0011706,94535.0,94534.0,0.79282493]
[1736404220152,0.01773981,94535.0,94534.0,0.61026493]
[1736404220360,0.01773981,94535.0,94534.0,0.66453351]
[1736404220583,0.01773981,94535.0,94534.0,0.66482493]
[1736404220740,0.01773981,94535.0,94534.0,0.60997351]
[1736404220944,0.01773981,94535.0,94534.0,0.57691372]
[1736404221518,0.0011706,94535.0,94534.0,0.57691372]
[1736404225754,0.0011706,94535.0,94534.0,0.11534972]
[1736404226273,0.0011706,94535.0,94534.0,0.21640739]
[1736404226487,0.0011706,94535.0,94534.0,0.21534972]
[1736404226935,0.0011706,94535.0,94534.0,0.44314114]
[1736404227383,0.0011706,94535.0,94534.0,0.47611833]
[1736404227788,0.0011706,94535.0,94534.0,0.44314114]
[1736404228037,0.0011706,94535.0,94534.0,0.47611863]
[1736404228412,0.0011706,94535.0,94534.0,0.44314114]
[1736404228618,0.0011706,94535.0,94534.0,0.4761178]
[1736404228841,0.0011706,94535.0,94534.0,0.8019178]
[1736404230030,0.0011706,94535.0,94534.0,0.76894114]
[1736404230282,0.0011706,94535.0,94534.0,0.77980536]
[1736404230615,0.0011706,94535.0,94534.0,0.81278388]
[1736404231256,0.0011706,94535.0,94534.0,0.77980536]
[1736404231670,0.0011706,94535.0,94534.0,0.81278515]
[1736404232215,0.0011706,94535.0,94534.0,0.85918515]
[1736404233268,0.0001706,94535.0,94534.0,0.85118515]
[1736404233531,0.0001706,94535.0,94534.0,0.84818515]
[1736404233767,0.0011706,94535.0,94534.0,0.88018535]
[1736404234144,0.0001706,94535.0,94534.0,0.98378535]
[1736404234320,0.0011706,94535.0,94534.0,0.98978535]
[1736404234485,0.0011706,94535.0,94534.0,0.93274535]
[1736404235655,0.0001706,94535.0,94534.0,0.90245373]
[1736404235859,0.0001706,94535.0,94534.0,0.85605373]
[1736404236062,0.0001706,94535.0,94534.0,0.79355373]
[1736404236263,0.0001706,94535.0,94534.0,0.78484515]
[1736404236469,0.0001706,94535.0,94534.0,0.69730536]
[1736404236675,0.0001706,94535.0,94534.0,0.76086536]
[1736404236908,0.0001706,94535.0,94534.0,0.74586536]
[1736404237303,0.0001706,94535.0,94534.0,0.75857394]
[1736404237498,0.0001706,94535.0,94534.0,0.70401394]
[1736404237743,0.0001706,94535.0,94534.0,0.44314972]
[1736404240936,0.0001706,94535.0,94534.0,0.11734972]
[1736404241894,0.01674226,94535.0,94534.0,0.11734972]
[1736404243121,0.01674226,94535.0,94534.0,0.01304996]
[1736404243755,0.0001706,94535.0,94534.0,0.01304996]
[1736404244595,0.0001706,94535.0,94534.0,0.11734972]
[1736404247622,0.0001706,94535.0,94534.0,0.40174096]
[1736404247825,0.0001706,94535.0,94534.0,0.40068335]
[1736404248653,0.0001706,94535.0,94534.0,0.41156714]
[1736404251180,0.0001706,94535.0,94534.0,0.41127572]
[1736404251381,0.0001706,94535.0,94534.0,0.41156714]
[1736404251693,0.0001706,94535.0,94534.0,0.15039193]
[1736404252115,0.0001706,94535.0,94534.0,0.11734972]
[1736404254607,0.0001706,94535.0,94534.0,0.11334972]
[1736404255118,0.0001706,94535.0,94534.0,0.11634972]
[1736404255319,0.0001706,94535.0,94534.0,0.31891372]
[1736404255517,0.0001706,94535.0,94534.0,0.31591372]
[1736404255746,0.0001706,94535.0,94534.0,0.11234972]
[1736404255922,0.0001706,94535.0,94534.0,0.11534972]
[1736404256566,0.0001706,94535.0,94534.0,0.10734972]
[1736404256704,0.0001706,94535.0,94534.0,0.11334972]
[1736404261624,0.01674263,94535.0,94534.0,0.00904996]
[1736404264145,0.0001706,94535.0,94534.0,0.00904996]
[1736404269970,0.05246892,94535.0,94534.0,0.00904996]
[1736404270180,0.3006775,94535.0,94534.0,0.00904996]
[1736404270807,0.3006775,94535.0,94534.0,0.00604996]
[1736404271563,0.3006775,94535.0,94534.0,4.996e-05]
[1736404271737,0.3006775,94535.0,94534.0,0.00104996]
[1736404271942,0.3006775,94535.0,94534.0,4.996e-05]
[1736404272142,0.24837918,94535.0,94534.0,4.996e-05]
[1736404272348,0.25037918,94535.0,94534.0,4.996e-05]
[1736404274023,0.35467894,94535.0,94534.0,4.996e-05]
[1736404274201,0.35567894,94535.0,94534.0,4.996e-05]
[1736404277282,0.49797319,94535.0,94534.0,4.996e-05]
[1736404277449,0.60227295,94535.0,94534.0,4.996e-05]
[1736404278227,0.75227295,94535.0,94534.0,4.996e-05]
[1736404278442,0.70480717,94535.0,94534.0,4.996e-05]
[1736404278891,1.12740309,94535.0,94534.0,9.6e-07]
[1736404279244,1.17486887,94535.0,94534.0,9.6e-07]
[1736404279448,1.17286887,94535.0,94534.0,9.6e-07]
[1736404280092,1.17186887,94535.0,94534.0,9.6e-07]
[1736404280274,1.37957711,94535.0,94534.0,9.6e-07]
[1736404280466,1.3961533,94535.0,94534.0,9.6e-07]
[1736404280673,1.3991533,94535.0,94534.0,9.6e-07]
[1736404281121,1.3961533,94535.0,94534.0,9.6e-07]
[1736404281328,1.4001533,94535.0,94534.0,9.6e-07]
[1736404281505,1.4041533,94535.0,94534.0,9.6e-07]
[1736404281702,0.21164,94500.0,94486.0,0.00287034]
[1736404281968,0.021164,94499.0,94487.0,0.10429976]
[1736404282245,0.211644,94498.0,94487.0,0.10429976]
[1736404282397,0.01657721,94497.0,94487.0,0.10429976]
[1736404282604,0.01657721,94497.0,94486.0,0.00292038]
[1736404282605,0.21648622,94496.0,94486.0,0.00292038]
[1736404282804,0.00483722,94496.0,94486.0,0.00292038]
[1736404283144,0.423304,94495.0,94486.0,0.00692038]
[1736404283593,0.211665,94489.0,94486.0,0.00892038]
[1736404283955,0.211665,94489.0,94486.0,0.00692038]
[1736404284138,0.00483722,94488.0,94486.0,0.00692038]
[1736404284340,0.00483722,94488.0,94486.0,0.00592038]
[1736404284542,0.00483722,94488.0,94487.0,0.007]
[1736404284757,0.05388625,94488.0,94487.0,0.007]
[1736404284951,0.05388625,94488.0,94486.0,0.00292038]
[1736404284952,0.211669,94487.0,94486.0,0.00292038]
[1736404285152,0.211669,94487.0,94486.0,0.01292038]
[1736404285359,0.21649301,94487.0,94486.0,0.01292038]
[1736404285558,0.21649301,94487.0,94486.0,0.00592038]
[1736404286526,0.21649301,94487.0,94486.0,0.00292038]
[1736404287326,0.31605951,94487.0,94486.0,0.00292038]
[1736404288291,0.31605951,94487.0,94486.0,0.00392038]
[1736404290316,0.3326384,94487.0,94486.0,0.00392038]
[1736404293933,0.31605951,94487.0,94486.0,0.00392038]
[1736404294539,0.23949301,94487.0,94486.0,0.00392038]
[1736404300472,0.25607219,94487.0,94486.0,0.00392038]
[1736404302083,0.25607219,94487.0,94486.0,0.00292038]
[1736404304037,0.23949301,94487.0,94486.0,0.00292038]
[1736404310343,0.25607238,94487.0,94486.0,0.00292038]
[1736404310494,0.23949301,94487.0,94486.0,0.00292038]
[1736404310943,0.00482401,94487.0,94486.0,0.08002038]
[1736404311351,0.211668,94488.0,94486.0,0.08002038]
[1736404311605,0.09970858,94501.0,94486.0,0.00292038]
[1736404311784,0.00472125,94487.0,94486.0,0.00292038]
[1736404311984,0.211656,94493.0,94486.0,0.00292038]
[1736404312148,0.00472133,94487.0,94486.0,0.00292038]
[1736404312355,0.423312,94493.0,94486.0,0.00392038]
[1736404312555,0.00472135,94487.0,94486.0,0.00692038]
[1736404312784,0.211656,94493.0,94486.0,0.00692038]
[1736404313130,0.211656,94493.0,94486.0,0.00592038]
[1736404313317,0.00472132,94492.0,94486.0,0.00592038]
[1736404313790,0.02129973,94492.0,94486.0,0.00592038]
[1736404313982,0.023,94499.0,94486.0,0.00292038]
[1736404314165,0.211644,94498.0,94486.0,0.00292038]
[1736404314338,0.21639515,94498.0,94486.0,0.00292038]
[1736404314551,0.00475115,94498.0,94487.0,0.52763676]
[1736404314934,0.211635,94503.0,94487.0,0.52763676]
[1736404315162,0.211637,94501.0,94487.0,0.52763676]
[1736404315713,0.00475123,94500.0,94493.0,0.0802]
[1736404315912,0.211606,94515.0,94498.0,0.211643]
[1736404316121,0.00475971,94511.0,94504.0,0.211629]
[1736404316334,0.211592,94522.0,94509.0,0.211618]
[1736404316533,0.00475971,94521.0,94510.0,0.0487]
[1736404316955,0.00475971,94521.0,94512.0,0.0802]
[1736404317158,0.00475971,94521.0,94518.0,0.423198]
[1736404317365,0.09473887,94523.0,94520.0,0.211595]
[1736404317569,0.09473887,94523.0,94520.0,0.31589476]
[1736404317779,0.005,94521.0,94520.0,0.31589476]
[1736404318149,0.211566,94534.0,94520.0,0.31589476]
[1736404318352,0.001,94521.0,94520.0,0.1043498]
[1736404318757,0.211574,94530.0,94520.0,0.1043498]
[1736404318959,0.001,94521.0,94520.0,0.1103498]
[1736404319134,0.003,94521.0,94520.0,0.1103498]
[1736404319701,0.001,94521.0,94520.0,0.1103498]
[1736404319835,0.001,94521.0,94520.0,0.1113498]
[1736404320265,0.211574,94530.0,94520.0,0.1053498]
[1736404320605,0.001,94521.0,94520.0,0.1103498]
[1736404322322,0.01757383,94521.0,94520.0,0.1103498]
[1736404322530,0.01757383,94521.0,94520.0,0.1133498]
[1736404322937,0.001,94521.0,94520.0,0.00905004]
[1736404323144,0.02708679,94521.0,94520.0,0.00905004]
[1736404323342,0.23867979,94521.0,94520.0,0.00905004]
[1736404323570,0.34013007,94521.0,94520.0,0.00905004]
[1736404323937,0.33913007,94521.0,94520.0,5.004e-05]
[1736404324139,0.34013007,94521.0,94520.0,0.00905004]
[1736404324567,0.33913007,94521.0,94520.0,0.00305004]
[1736404325639,0.21642149,94521.0,94520.0,0.00305004]
[1736404325854,0.28576862,94521.0,94520.0,5.004e-05]
[1736404326026,0.4084772,94521.0,94520.0,5.004e-05]
[1736404327069,0.4094772,94521.0,94520.0,5.004e-05]
[1736404327272,0.39490138,94521.0,94520.0,5.004e-05]
[1736404327689,0.39390138,94521.0,94520.0,5.004e-05]
[1736404327889,0.39190138,94521.0,94520.0,5.004e-05]
[1736404328455,0.39390138,94521.0,94520.0,5.004e-05]
[1736404329407,0.39490138,94521.0,94520.0,5.004e-05]
[1736404329827,0.39390138,94521.0,94520.0,5.004e-05]
[1736404330290,0.39490138,94521.0,94520.0,5.004e-05]
[1736404331569,0.41147774,94521.0,94520.0,5.004e-05]
[1736404332864,0.35870643,94521.0,94520.0,5.004e-05]
[1736404333899,0.34213007,94521.0,94520.0,5.004e-05]
[1736404340345,0.35870644,94521.0,94520.0,5.004e-05]
[1736404343932,0.34213007,94521.0,94520.0,5.004e-05]
[1736404348706,0.24242149,94521.0,94520.0,5.004e-05]
[1736404348902,0.3985504,94521.0,94520.0,5.004e-05]
[1736404350355,0.41512681,94521.0,94520.0,5.004e-05]
[1736404352885,0.35870648,94521.0,94520.0,5.004e-05]
[1736404354091,0.34213007,94521.0,94520.0,5.004e-05]
[1736404360297,0.35870635,94521.0,94520.0,5.004e-05]
[1736404363998,0.34213007,94521.0,94520.0,5.004e-05]
[1736404373132,0.43744549,94521.0,94520.0,5.004e-05]
[1736404373297,0.53675776,94521.0,94520.0,5.004e-05]
[1736404374942,0.43704918,94521.0,94520.0,5.004e-05]
[1736404375122,0.53675776,94521.0,94520.0,5.004e-05]
[1736404375650,0.5533339,94521.0,94520.0,5.004e-05]
[1736404377493,0.53675776,94521.0,94520.0,5.004e-05]
[1736404377795,0.43744549,94521.0,94520.0,5.004e-05]
[1736404378885,0.34213007,94521.0,94520.0,5.004e-05]
[1736404382924,0.43744549,94521.0,94520.0,5.004e-05]
[1736404383782,0.45402167,94521.0,94520.0,5.004e-05]
[1736404384190,0.43744549,94521.0,94520.0,5.004e-05]
[1736404384407,0.54174525,94521.0,94520.0,5.004e-05]
[1736404387974,0.64604501,94521.0,94520.0,5.004e-05]
[1736404388184,0.70484501,94521.0,94520.0,5.004e-05]
[1736404388383,0.90374501,94521.0,94520.0,5.004e-05]
[1736404388798,0.80842959,94521.0,94520.0,5.004e-05]
[1736404389002,0.90842959,94521.0,94520.0,5.004e-05]
[1736404390191,0.90642959,94521.0,94520.0,5.004e-05]
[1736404390391,1.19237587,94521.0,94520.0,5.004e-05]
[1736404390906,1.19637587,94521.0,94520.0,5.004e-05]
[1736404391350,1.19837587,94521.0,94520.0,5.004e-05]
[1736404391785,1.2638412,94521.0,94520.0,5.004e-05]
[1736404393571,1.60251816,94521.0,94520.0,5.004e-05]
[1736404394049,1.25110655,94521.0,94520.0,5.004e-05]
[1736404398604,1.24910655,94521.0,94520.0,5.004e-05]
[1736404399002,1.25310655,94521.0,94520.0,5.004e-05]
[1736404399206,1.24810655,94521.0,94520.0,5.004e-05]
[1736404399593,1.25710655,94521.0,94520.0,0.00105004]
[1736404400198,1.24810655,94521.0,94520.0,5.004e-05]
[1736404400398,1.25310655,94521.0,94520.0,0.00105004]
[1736404400734,1.24052959,94521.0,94520.0,0.00105004]
[1736404401393,1.24052959,94521.0,94520.0,5.005e-05]
[1736404403341,1.29508959,94521.0,94520.0,5.005e-05]
[1736404403961,1.31166741,94521.0,94520.0,5.005e-05]
[1736404404502,1.20736765,94521.0,94520.0,5.005e-05]
[1736404412679,1.20736765,94521.0,94520.0,5e-08]